bitfinex/quotes_BTCUSD_20220211
["timestamp","ask_amount","ask_price","bid_price","bid_amount"]
[1644616933466,0.23219053,42597.0,42586.0,0.10895019]
[1644616933666,0.23219053,42597.0,42586.0,0.05895019]
[1644616933867,0.37452743,42592.0,42586.0,0.05895019]
[1644616934466,0.2677491,42611.0,42586.0,0.25834879]
[1644616934467,0.0469,42601.0,42586.0,0.25834879]
[1644616934670,0.3,42603.0,42591.0,0.058712]
[1644616934866,0.5712,42604.0,42591.0,0.058712]
[1644616935066,0.5712,42604.0,42591.0,0.108712]
[1644616935267,0.5712,42604.0,42591.0,0.05]
[1644616935468,0.56534118,42602.0,42592.0,0.37393949]
[1644616935869,0.56534118,42602.0,42592.0,0.47393949]
[1644616936070,0.32010141,42602.0,42592.0,0.47393949]
[1644616936716,0.32010141,42602.0,42592.0,0.53265649]
[1644616937119,0.62934774,42602.0,42592.0,0.53265649]
[1644616938217,0.62934774,42602.0,42592.0,0.43265649]
[1644616938420,0.0001,42601.0,42592.0,0.43265649]
[1644616938820,0.0588173,42601.0,42592.0,0.37393949]
[1644616939022,0.0001,42600.0,42592.0,0.37393949]
[1644616939419,0.0001,42601.0,42591.0,0.05046068]
[1644616939620,0.0001,42601.0,42591.0,0.00046068]
[1644616940121,0.0001,42601.0,42588.0,0.00022419]
[1644616940360,0.0001,42601.0,42592.0,0.058716]
[1644616940361,0.05881727,42601.0,42592.0,0.058716]
[1644616940562,0.0001,42600.0,42592.0,0.058716]
[1644616941763,0.05,42601.0,42592.0,0.058716]
[1644616942163,0.05,42601.0,42591.0,0.00046068]
[1644616942563,0.05871982,42600.0,42590.0,0.058719]
[1644616942761,0.05871982,42600.0,42591.0,0.00046068]
[1644616942962,0.05,42601.0,42591.0,0.00046068]
[1644616943163,0.05,42601.0,42591.0,0.05917768]
[1644616943763,0.05,42601.0,42591.0,0.058717]
[1644616943965,0.05,42601.0,42591.0,0.05917768]
[1644616944812,0.05,42601.0,42591.0,0.058717]
[1644616945013,0.05,42601.0,42591.0,0.05917768]
[1644616945213,0.10871958,42601.0,42591.0,0.05917768]
[1644616945412,0.05,42601.0,42591.0,0.05917768]
[1644616945616,0.45287517,42598.0,42591.0,0.05917768]
[1644616945816,0.45287517,42598.0,42591.0,0.00046068]
[1644616946015,0.45287517,42598.0,42588.0,0.00022419]
[1644616946217,0.45287517,42598.0,42591.0,0.00046067]
[1644616946917,0.25344628,42595.0,42591.0,0.00046067]
[1644616947318,0.0001,42594.0,42586.0,0.05894919]
[1644616947517,0.0001,42594.0,42591.0,0.00046066]
[1644616948564,0.0001,42594.0,42587.0,0.00022419]
[1644616948765,0.0001,42594.0,42590.0,0.00046066]
[1644616949766,0.0001,42594.0,42587.0,0.00022419]
[1644616949965,0.0001,42594.0,42590.0,0.00046066]
[1644616950966,0.0001,42594.0,42587.0,0.00022419]
[1644616951165,0.0001,42594.0,42590.0,0.00046066]
[1644616952015,0.0001,42594.0,42587.0,0.00022419]
[1644616952214,0.0001,42594.0,42590.0,0.00046066]
[1644616953016,0.28061659,42594.0,42590.0,0.00046066]
[1644616953217,0.0001,42593.0,42587.0,0.00022419]
[1644616953416,0.0001,42593.0,42590.0,0.00046066]
[1644616953618,0.0001,42594.0,42590.0,0.00046066]
[1644616954417,0.0001,42594.0,42588.0,0.00022419]
[1644616954622,0.0001,42594.0,42590.0,0.00046066]
[1644616955687,0.0001,42594.0,42588.0,0.00022419]
[1644616955886,0.0001,42594.0,42590.0,0.00046066]
[1644616956887,0.0001,42594.0,42588.0,0.00022421]
[1644616957087,0.0001,42594.0,42590.0,0.00046066]
[1644616958089,0.0001,42594.0,42588.0,0.00022421]
[1644616958289,0.0001,42594.0,42590.0,0.00046066]
[1644616959314,0.0001,42594.0,42588.0,0.00022421]
[1644616959513,0.0001,42594.0,42587.0,0.05643661]
[1644616959514,0.0001,42594.0,42590.0,0.00046066]
[1644616960515,0.0001,42594.0,42588.0,0.00022421]
[1644616960715,0.0001,42594.0,42590.0,0.00016241]
[1644616961614,0.0001,42594.0,42587.0,0.00022421]
[1644616961817,0.0001,42594.0,42590.0,0.00016241]
[1644616962880,0.0001,42594.0,42588.0,0.00022421]
[1644616963081,0.24225355,42600.0,42590.0,0.00016241]
[1644616963082,0.0001,42596.0,42590.0,0.00016241]
[1644616963281,0.0001,42596.0,42591.0,0.0969]
[1644616963481,0.0001,42596.0,42592.0,0.1993986]
[1644616963679,0.0001,42600.0,42599.0,0.058708]
[1644616964080,0.19564988,42606.0,42599.0,0.45889142]
[1644616964281,0.0001,42605.0,42600.0,0.05]
[1644616964881,0.0001,42608.0,42600.0,0.05]
[1644616965084,0.0001,42608.0,42600.0,0.10871]
[1644616965682,0.0001,42608.0,42600.0,0.05]
[1644616965882,0.0001,42608.0,42598.0,0.1993986]
[1644616966084,0.0001,42608.0,42601.0,0.28245967]
[1644616966282,0.0001,42608.0,42601.0,0.05]
[1644616966482,0.0001,42608.0,42602.0,0.058707]
[1644616969516,0.0001,42608.0,42600.0,0.058709]
[1644616971378,0.25824125,42608.0,42600.0,0.058709]
[1644616971578,0.0001,42607.0,42600.0,0.058709]
[1644616971778,0.0001,42607.0,42600.0,0.05283811]
[1644616973578,0.0001,42608.0,42600.0,0.05283811]
[1644616974519,0.05881028,42608.0,42600.0,0.05283811]
[1644616974918,0.0001,42607.0,42600.0,0.05283811]
[1644616975523,0.0001,42607.0,42599.0,0.1993986]
[1644616976020,0.0001,42608.0,42600.0,0.0469]
[1644616976620,0.0001,42608.0,42600.0,0.105609]
[1644616980368,0.0001,42608.0,42600.0,0.058709]
[1644616987070,0.05880883,42608.0,42600.0,0.058709]
[1644616987470,0.0001,42607.0,42600.0,0.058709]
[1644616988068,0.0001,42608.0,42600.0,0.058709]
[1644616990714,0.37723114,42605.0,42600.0,0.058709]
[1644616991115,0.0001,42604.0,42600.0,0.058709]
[1644616991722,0.10557492,42609.0,42600.0,0.058709]
[1644616991723,0.0001,42608.0,42600.0,0.058709]
[1644616992317,0.10557492,42609.0,42608.0,1.081e-05]
[1644616992518,0.16428311,42609.0,42608.0,1.081e-05]
[1644616992723,0.43892924,42609.0,42608.0,1.081e-05]
[1644616993372,0.15557492,42609.0,42608.0,1.081e-05]
[1644616997818,0.15567492,42609.0,42608.0,1.081e-05]
[1644616998419,0.13567492,42609.0,42608.0,1.081e-05]
[1644617003373,0.33510607,42609.0,42608.0,1.081e-05]
[1644617005315,0.13567492,42609.0,42608.0,1.081e-05]
[1644617006618,0.33099748,42609.0,42608.0,1.081e-05]
[1644617006813,0.33099254,42609.0,42608.0,1.081e-05]
[1644617007012,0.13185636,42609.0,42608.0,1.081e-05]
[1644617007514,0.38060701,42609.0,42608.0,1.081e-05]
[1644617008872,0.13185636,42609.0,42608.0,1.081e-05]
[1644617009277,0.29594683,42609.0,42608.0,1.081e-05]
[1644617009475,0.0001,42609.0,42608.0,1.081e-05]
[1644617009672,0.0001,42609.0,42608.0,0.3539915]
[1644617009872,0.0001,42611.0,42608.0,0.65378989]
[1644617010073,0.00055998,42611.0,42609.0,0.36315833]
[1644617010273,0.00045998,42611.0,42610.0,0.27916078]
[1644617010874,0.0001,42613.0,42610.0,0.05]
[1644617011072,0.0001,42613.0,42611.0,0.058691]
[1644617011274,0.00055998,42613.0,42611.0,0.058691]
[1644617011474,0.00055998,42613.0,42612.0,0.28765026]
[1644617011727,0.00055998,42613.0,42611.0,0.25848939]
[1644617011929,0.00045998,42613.0,42611.0,0.058691]
[1644617012130,0.19925618,42615.0,42611.0,0.058691]
[1644617012427,0.0001,42616.0,42611.0,0.058691]
[1644617012428,0.00055998,42614.0,42611.0,0.058691]
[1644617012627,0.00045998,42614.0,42611.0,0.058691]
[1644617013428,0.0001,42615.0,42611.0,0.058691]
[1644617013629,0.00055997,42615.0,42611.0,0.058691]
[1644617014630,0.0001,42615.0,42611.0,0.058691]
[1644617014828,0.00055997,42615.0,42611.0,0.058691]
[1644617015472,0.00045997,42615.0,42611.0,0.058691]
[1644617015671,0.0001,42616.0,42611.0,0.058691]
[1644617016071,0.00045997,42615.0,42611.0,0.058691]
[1644617016872,0.0001,42617.0,42611.0,0.058691]
[1644617017274,0.00045997,42615.0,42611.0,0.058691]
[1644617018173,0.0001,42617.0,42611.0,0.058691]
[1644617018375,0.00045997,42615.0,42611.0,0.058691]
[1644617019418,0.0001,42617.0,42611.0,0.058691]
[1644617019622,0.00045997,42615.0,42611.0,0.058691]
[1644617020218,0.00045997,42615.0,42612.0,0.27771618]
[1644617020618,0.0001,42618.0,42613.0,0.058684]
[1644617020818,0.0001,42618.0,42614.0,0.15280179]
[1644617020819,0.00045997,42616.0,42614.0,0.15280179]
[1644617021017,0.00045997,42616.0,42614.0,0.05]
[1644617021219,0.00045997,42616.0,42614.0,0.10406409]
[1644617021419,0.00045997,42616.0,42615.0,0.2814716]
[1644617021618,0.00045997,42616.0,42615.0,0.3314716]
[1644617021817,0.0001,42619.0,42616.0,0.058683]
[1644617022018,0.0001,42621.0,42616.0,0.058683]
[1644617022220,0.00045996,42618.0,42616.0,0.058683]
[1644617022418,0.00045996,42618.0,42617.0,0.39441725]
[1644617022873,0.0001,42621.0,42617.0,0.39441725]
[1644617023071,0.0001,42622.0,42617.0,0.51177925]
[1644617023272,0.00045996,42620.0,42617.0,0.51177925]
[1644617024172,0.0001,42623.0,42617.0,0.51177925]
[1644617024375,0.00045995,42621.0,42617.0,0.51177925]
[1644617025475,0.0001,42623.0,42617.0,0.51177925]
[1644617025679,0.00045995,42621.0,42617.0,0.51177925]
[1644617026624,0.0001,42623.0,42617.0,0.39441725]
[1644617026819,0.00042061,42621.0,42617.0,0.1]
[1644617027822,0.0001,42623.0,42615.0,0.43654962]
[1644617028022,0.00042061,42621.0,42615.0,0.43654962]
[1644617028820,0.00042061,42621.0,42615.0,0.43645601]
[1644617029021,0.0001,42624.0,42615.0,0.49514501]
[1644617029222,0.00042062,42620.0,42615.0,0.20859539]
[1644617029423,0.00042062,42620.0,42615.0,0.33386442]
[1644617029623,0.00042062,42620.0,42614.0,0.50141373]
[1644617029822,0.00042062,42620.0,42614.0,0.40525916]
[1644617030225,0.0001,42624.0,42616.0,0.058688]
[1644617030488,0.00042062,42619.0,42616.0,0.058688]
[1644617031291,0.0001,42625.0,42616.0,0.058688]
[1644617031588,0.00042326,42620.0,42616.0,0.058688]
[1644617031787,0.00042326,42620.0,42615.0,0.28633259]
[1644617031988,0.00042326,42620.0,42615.0,0.217367]
[1644617032189,0.00042326,42620.0,42615.0,0.117367]
[1644617032595,0.0001,42626.0,42616.0,0.058688]
[1644617032791,0.0017928,42626.0,42621.0,0.29431519]
[1644617032991,0.0017928,42626.0,42621.0,0.34431519]
[1644617033396,0.0017928,42626.0,42622.0,0.0469]
[1644617033794,0.0001,42628.0,42622.0,0.0469]
[1644617033999,0.00042324,42626.0,42622.0,0.0469]
[1644617034240,0.00042324,42626.0,42622.0,0.105577]
[1644617034839,0.00042324,42626.0,42622.0,0.20419328]
[1644617035039,0.009388,42629.0,42622.0,0.26285728]
[1644617035242,0.00042333,42626.0,42622.0,0.26285728]
[1644617035838,0.00042333,42626.0,42622.0,0.26224971]
[1644617036243,0.009388,42629.0,42623.0,0.058671]
[1644617036442,0.00042333,42626.0,42623.0,0.105571]
[1644617036739,0.00042333,42626.0,42623.0,0.155571]
[1644617037341,0.0001,42632.0,42623.0,0.155571]
[1644617037541,0.00042333,42627.0,42623.0,0.155571]
[1644617038578,0.0001,42632.0,42623.0,0.155571]
[1644617038779,0.00042301,42627.0,42623.0,0.155571]
[1644617039381,0.00042301,42627.0,42624.0,0.29443942]
[1644617039579,0.00042301,42627.0,42626.0,0.058664]
[1644617039779,0.0001,42635.0,42627.0,0.09975785]
[1644617039979,0.001,42636.0,42627.0,0.09975785]
[1644617040179,0.00042301,42628.0,42627.0,0.09975785]
[1644617040383,0.00042301,42628.0,42627.0,0.40475193]
[1644617040583,0.00042301,42628.0,42627.0,0.09975785]
[1644617040783,0.00042301,42628.0,42627.0,0.217329]
[1644617040982,0.0001,42634.0,42627.0,0.217329]
[1644617041182,0.000423,42630.0,42627.0,0.217329]
[1644617041822,0.000423,42630.0,42627.0,0.117329]
[1644617042225,0.0001,42634.0,42627.0,0.117329]
[1644617042421,0.00042302,42631.0,42627.0,0.117329]
[1644617043422,0.0001,42634.0,42627.0,0.117329]
[1644617043622,0.00042302,42631.0,42627.0,0.117329]
[1644617044523,0.0001,42634.0,42627.0,0.117329]
[1644617045023,0.00042302,42631.0,42627.0,0.117329]
[1644617045475,0.00042302,42631.0,42627.0,0.11721786]
[1644617045677,0.0011,42636.0,42627.0,0.11721786]
[1644617045975,0.00042301,42631.0,42627.0,0.11721786]
[1644617046779,0.00042301,42631.0,42629.0,0.0989166]
[1644617046978,0.001,42636.0,42629.0,0.117326]
[1644617047178,0.00042301,42631.0,42629.0,0.21653915]
[1644617047477,0.00042301,42631.0,42630.0,0.36217393]
[1644617048082,0.00042301,42631.0,42630.0,0.42083693]
[1644617048283,0.001,42636.0,42630.0,0.42083693]
[1644617048479,0.00042301,42633.0,42630.0,0.42083693]
[1644617048880,0.00042301,42633.0,42630.0,0.058663]
[1644617049129,0.00042301,42633.0,42630.0,0.158663]
[1644617049328,0.001,42636.0,42632.0,0.05866]
[1644617049527,0.000423,42634.0,42632.0,0.16189994]
[1644617050328,0.000423,42634.0,42632.0,0.05866]
[1644617050527,0.07841768,42636.0,42632.0,0.05866]
[1644617050932,0.000423,42635.0,42630.0,0.158668]
[1644617051529,0.32934342,42635.0,42630.0,0.058668]
[1644617051731,0.32892042,42635.0,42627.0,0.28219977]
[1644617051933,0.32892042,42635.0,42628.0,0.058671]
[1644617052134,0.08553829,42629.0,42628.0,0.058671]
[1644617052335,0.08553829,42629.0,42623.0,0.0469]
[1644617052336,0.06980045,42621.0,42617.0,0.10388059]
[1644617052534,0.06980045,42621.0,42616.0,0.3992]
[1644617052733,0.05,42629.0,42611.0,0.4988909]
[1644617052980,0.21367094,42627.0,42615.0,0.09478424]
[1644617053181,0.38499819,42624.0,42612.0,0.19653594]
[1644617053380,0.00042305,42621.0,42617.0,0.09890578]
[1644617053583,0.00042305,42621.0,42612.0,0.19979839]
[1644617053780,0.00042305,42621.0,42614.0,0.10396519]
[1644617053983,0.06966018,42619.0,42618.0,0.058682]
[1644617054586,0.06966018,42619.0,42606.0,0.29880379]
[1644617054587,1.05,42618.0,42606.0,0.29880379]
[1644617054788,1.05,42618.0,42600.0,0.19775143]
[1644617054789,0.05,42612.0,42600.0,0.19775143]
[1644617054984,0.05,42612.0,42602.0,0.5]
[1644617054985,0.3469,42611.0,42602.0,0.5]
[1644617055185,0.0469,42611.0,42602.0,0.5]
[1644617055584,0.04716075,42611.0,42598.0,0.24352003]
[1644617055785,0.05871062,42609.0,42597.0,0.28363321]
[1644617055985,0.05871062,42609.0,42597.0,0.28385755]
[1644617056185,0.06421143,42608.0,42597.0,0.28385755]
[1644617056483,0.05871062,42609.0,42597.0,0.28385755]
[1644617056731,0.058712,42608.0,42597.0,0.28385755]
[1644617057233,0.05871084,42607.0,42597.0,0.28385755]
[1644617057634,0.13687414,42607.0,42597.0,0.28385755]
[1644617058034,0.18687414,42607.0,42597.0,0.28385755]
[1644617059138,0.05,42607.0,42597.0,0.28385755]
[1644617059641,0.40786368,42609.0,42597.0,0.28385755]
[1644617059840,0.05,42609.0,42600.0,0.25979398]
[1644617060043,0.00044689,42611.0,42601.0,0.04670054]
[1644617060243,0.3635,42620.0,42602.0,0.09914653]
[1644617060476,0.28325571,42619.0,42607.0,0.05869]
[1644617060678,0.00045955,42611.0,42610.0,0.390839]
[1644617061077,0.00045955,42611.0,42605.0,0.1]
[1644617061281,0.00045955,42611.0,42602.0,0.09132527]
[1644617061579,0.08904777,42616.0,42600.0,0.4682757]
[1644617061580,0.28443233,42616.0,42600.0,0.4682757]
[1644617061779,0.00045958,42611.0,42600.0,0.4682757]
[1644617061976,0.33443233,42616.0,42614.0,8.601e-05]
[1644617062179,0.28089482,42615.0,42614.0,8.601e-05]
[1644617064628,0.05,42616.0,42614.0,8.601e-05]
[1644617064823,0.10915709,42617.0,42614.0,8.601e-05]
[1644617065022,0.05869753,42617.0,42614.0,8.601e-05]
[1644617065222,0.05915709,42617.0,42614.0,8.601e-05]
[1644617065422,0.11785609,42617.0,42614.0,8.601e-05]
[1644617066225,0.11739653,42617.0,42614.0,8.601e-05]
[1644617069782,0.59457062,42618.0,42614.0,8.601e-05]
[1644617069783,0.05,42618.0,42614.0,8.601e-05]
[1644617070184,0.00044334,42618.0,42614.0,8.601e-05]
[1644617070580,0.00983434,42618.0,42614.0,8.601e-05]
[1644617070780,0.00044334,42618.0,42614.0,8.601e-05]
[1644617070983,0.13748844,42622.0,42614.0,8.601e-05]
[1644617071181,0.00044333,42618.0,42614.0,8.601e-05]
[1644617072221,0.05869201,42621.0,42614.0,8.601e-05]
[1644617072423,0.00042817,42618.0,42614.0,8.601e-05]
[1644617073422,0.108693,42622.0,42614.0,8.601e-05]
[1644617073622,0.00042817,42618.0,42614.0,8.601e-05]
[1644617074724,0.058693,42622.0,42614.0,8.601e-05]
[1644617074924,0.00042817,42618.0,42614.0,8.601e-05]
[1644617075872,0.108694,42621.0,42614.0,8.601e-05]
[1644617076072,0.00043039,42618.0,42614.0,8.601e-05]
[1644617077075,0.0001,42619.0,42614.0,8.601e-05]
[1644617077274,0.00043039,42618.0,42614.0,8.601e-05]
[1644617078275,0.0001,42623.0,42614.0,8.601e-05]
[1644617078479,0.00043039,42618.0,42614.0,8.601e-05]
[1644617079148,0.00043039,42618.0,42615.0,0.058684]
[1644617079539,0.0001,42623.0,42615.0,0.058684]
[1644617079741,0.00043006,42618.0,42615.0,0.058684]
[1644617079941,0.00043006,42618.0,42614.0,8.601e-05]
[1644617080243,0.00043006,42618.0,42614.0,0.05877101]
[1644617080641,0.0001,42623.0,42614.0,0.05877101]
[1644617081043,0.00043006,42618.0,42614.0,0.05877101]
[1644617081842,0.0001,42623.0,42614.0,0.09770838]
[1644617082142,2.768e-05,42614.0,42613.0,0.09870032]
[1644617082344,2.768e-05,42614.0,42612.0,0.44896904]
[1644617082741,2.768e-05,42614.0,42612.0,0.10557707]
[1644617082974,2.768e-05,42614.0,42612.0,0.00557707]
[1644617083172,2.768e-05,42614.0,42613.0,0.058685]
[1644617084174,2.768e-05,42614.0,42612.0,0.00557707]
[1644617086475,2.768e-05,42614.0,42605.0,0.0469]
[1644617086739,2.768e-05,42614.0,42602.0,0.3728]
[1644617087333,2.768e-05,42614.0,42604.0,0.81809241]
[1644617087334,0.05872855,42614.0,42604.0,0.81809241]
[1644617087535,0.0001,42613.0,42604.0,0.44229241]
[1644617087934,0.0001,42613.0,42604.0,0.59229241]
[1644617088133,0.00055106,42613.0,42604.0,0.59229241]
[1644617088335,0.00055106,42613.0,42605.0,0.058699]
[1644617088535,0.00055106,42613.0,42605.0,0.053699]
[1644617089136,0.0001,42613.0,42605.0,0.053699]
[1644617089335,0.00055106,42613.0,42605.0,0.053699]
[1644617089736,0.00045106,42613.0,42605.0,0.053699]
[1644617090376,2.768e-05,42614.0,42605.0,0.053699]
[1644617090576,0.00042757,42613.0,42605.0,0.053699]
[1644617091375,2.768e-05,42614.0,42605.0,0.053699]
[1644617091777,0.00042757,42613.0,42605.0,0.053699]
[1644617091976,0.00019227,42613.0,42605.0,0.053699]
[1644617092577,2.768e-05,42614.0,42605.0,0.053699]
[1644617094137,2.768e-05,42614.0,42605.0,0.05383243]
[1644617095134,2.768e-05,42614.0,42605.0,0.053699]
[1644617095335,2.768e-05,42614.0,42605.0,0.0541301]
[1644617096336,2.768e-05,42614.0,42605.0,0.053699]
[1644617096536,2.768e-05,42614.0,42605.0,0.25364046]
[1644617096935,2.768e-05,42614.0,42605.0,0.0541301]
[1644617097536,2.768e-05,42614.0,42605.0,0.053699]
[1644617097737,2.768e-05,42614.0,42605.0,0.05412957]
[1644617098574,2.768e-05,42614.0,42605.0,0.053699]
[1644617098776,2.768e-05,42614.0,42606.0,0.25820936]
[1644617098777,0.2486347,42614.0,42606.0,0.25820936]
[1644617099178,0.0001,42613.0,42606.0,0.30820936]
[1644617099376,0.0001,42613.0,42606.0,0.40820936]
[1644617102029,0.0001,42613.0,42606.0,0.34951036]
[1644617103626,0.0001,42613.0,42606.0,0.24951036]
[1644617103826,0.0001,42613.0,42606.0,0.34951036]
[1644617104225,0.0001,42613.0,42606.0,0.40820936]
[1644617104625,0.19870702,42613.0,42606.0,0.40820936]
[1644617104825,0.0001,42612.0,42607.0,0.19951036]
[1644617105225,0.0001,42612.0,42608.0,0.19951036]
[1644617105475,0.0001,42613.0,42608.0,0.19951036]
[1644617105775,0.0001,42613.0,42607.0,0.25820836]
[1644617106775,0.19870702,42613.0,42607.0,0.25820836]
[1644617107175,0.0001,42612.0,42607.0,0.25820836]
[1644617108576,0.0001,42612.0,42607.0,0.058698]
[1644617108779,0.0001,42612.0,42607.0,0.25820836]
[1644617109441,0.0001,42612.0,42607.0,0.19951036]
[1644617109640,0.06457812,42611.0,42606.0,0.19951036]
[1644617109839,0.32043336,42610.0,42605.0,0.00043064]
[1644617110039,0.56914038,42610.0,42605.0,0.00043064]
[1644617110238,0.05871147,42608.0,42605.0,0.00043064]
[1644617110642,0.0001,42607.0,42603.0,0.19951036]
[1644617110839,0.0001,42607.0,42604.0,0.00043063]
[1644617111240,0.0001,42608.0,42604.0,0.00043063]
[1644617111839,0.0001,42608.0,42601.0,0.24951036]
[1644617112039,0.0588086,42608.0,42604.0,0.00043063]
[1644617112240,0.24860702,42610.0,42604.0,0.00043063]
[1644617112241,0.0001,42607.0,42604.0,0.00043063]
[1644617112639,0.2574171,42608.0,42604.0,0.00043063]
[1644617112886,0.3074171,42608.0,42604.0,0.00043063]
[1644617113084,0.0001,42607.0,42601.0,0.19951036]
[1644617113283,0.0001,42607.0,42604.0,0.00043063]
[1644617114087,0.05880898,42608.0,42604.0,0.00043063]
[1644617114288,0.05880898,42608.0,42601.0,0.19951036]
[1644617114485,0.05880898,42608.0,42603.0,0.00039083]
[1644617114686,0.0001,42607.0,42603.0,0.00039083]
[1644617115485,0.0001,42607.0,42601.0,0.19951036]
[1644617115685,0.0001,42607.0,42603.0,0.00039084]
[1644617116486,0.0001,42607.0,42603.0,0.00031582]
[1644617116732,0.0001,42607.0,42600.0,0.30821836]
[1644617117035,0.0001,42607.0,42603.0,0.00039084]
[1644617117932,0.0001,42607.0,42600.0,0.40821836]
[1644617118532,0.0001,42607.0,42601.0,0.058707]
[1644617118731,0.0001,42607.0,42599.0,0.19951036]
[1644617119330,0.0001,42607.0,42601.0,0.00039486]
[1644617119932,0.0001,42607.0,42601.0,0.05910186]
[1644617120133,0.05,42609.0,42601.0,0.00039486]
[1644617120134,0.0001,42608.0,42601.0,0.00039486]
[1644617120378,0.0001,42608.0,42597.0,0.1997347]
[1644617120379,0.19870702,42608.0,42597.0,0.1997347]
[1644617120577,0.19870702,42608.0,42602.0,0.00039486]
[1644617120776,0.0001,42607.0,42602.0,0.00039486]
[1644617120976,0.058813,42607.0,42602.0,0.00039486]
[1644617121179,0.0001,42606.0,42602.0,0.00039486]
[1644617121377,0.0001,42606.0,42598.0,0.00022434]
[1644617121578,0.0001,42606.0,42598.0,0.19951036]
[1644617121777,0.18977627,42604.0,42602.0,0.00039486]
[1644617121977,0.10871408,42604.0,42602.0,9.06e-06]
[1644617122379,0.05881408,42604.0,42602.0,9.06e-06]
[1644617122578,0.05,42603.0,42602.0,9.06e-06]
[1644617122879,0.05,42605.0,42598.0,0.24951036]
[1644617123079,0.05871598,42603.0,42598.0,0.24951036]
[1644617123579,0.05871598,42603.0,42598.0,0.05]
[1644617123779,0.05871598,42603.0,42598.0,0.00022434]
[1644617123979,0.05871598,42603.0,42597.0,0.05022434]
[1644617124227,0.05871598,42603.0,42597.0,0.00022434]
[1644617124427,0.0001,42604.0,42596.0,0.69903033]
[1644617124827,0.0001,42604.0,42596.0,0.49951997]
[1644617125031,0.05,42604.0,42596.0,0.49951997]
[1644617125228,0.0001,42605.0,42596.0,0.69903033]
[1644617125427,0.0001,42604.0,42596.0,0.69903033]
[1644617126029,0.05881456,42604.0,42596.0,0.69903033]
[1644617126527,0.05881456,42604.0,42598.0,0.00046014]
[1644617127328,0.28064853,42603.0,42598.0,0.00046014]
[1644617127531,0.33064853,42603.0,42597.0,0.00022434]
[1644617127730,0.33064853,42603.0,42596.0,0.55800963]
[1644617127731,0.05,42603.0,42599.0,0.00046014]
[1644617127978,0.34078633,42604.0,42599.0,0.00046014]
[1644617128177,0.28207177,42604.0,42599.0,0.00046014]
[1644617128578,0.28207177,42604.0,42598.0,0.00022434]
[1644617128779,0.28207177,42604.0,42597.0,0.05893634]
[1644617128977,0.27707177,42604.0,42599.0,0.00046014]
[1644617129576,0.27707177,42604.0,42597.0,0.02266249]
[1644617129777,0.27707177,42604.0,42598.0,0.00022611]
[1644617129778,0.51370285,42604.0,42598.0,0.00022611]
[1644617129977,0.51370285,42604.0,42597.0,0.0228886]
[1644617130978,0.23663108,42604.0,42597.0,0.0228886]
[1644617131378,0.0004601,42603.0,42597.0,0.02334876]
[1644617132224,0.23663108,42604.0,42597.0,0.0228886]
[1644617132425,0.00046009,42603.0,42597.0,0.02334876]
[1644617132627,0.08090198,42599.0,42597.0,0.00068627]
[1644617132832,0.08090198,42599.0,42597.0,0.00046016]
[1644617133027,0.13090198,42599.0,42597.0,0.00046016]
[1644617133428,0.12708342,42599.0,42595.0,0.26972611]
[1644617133628,0.65959119,42598.0,42596.0,0.00046015]
[1644617133827,0.0469,42597.0,42596.0,0.00046015]
[1644617134627,0.0469,42597.0,42595.0,0.2695]
[1644617134829,0.16435552,42597.0,42595.0,0.2695]
[1644617135026,0.28847826,42596.0,42595.0,0.2695]
[1644617136377,0.29787426,42596.0,42595.0,0.2695]
[1644617136576,0.28847826,42596.0,42595.0,0.2695]
[1644617136979,0.2083824,42594.0,42593.0,0.00068627]
[1644617137181,0.80428387,42594.0,42587.0,0.00022611]
[1644617137378,0.08034062,42584.0,42582.0,0.00022611]
[1644617137577,0.17724062,42584.0,42581.0,0.01]
[1644617137779,0.16724062,42584.0,42581.0,0.01]
[1644617137980,0.19602191,42582.0,42581.0,0.01]
[1644617138878,0.19602191,42582.0,42576.0,0.00022611]
[1644617138879,1.05,42581.0,42576.0,0.00022611]
[1644617139139,0.05,42580.0,42575.0,0.00022611]
[1644617139329,0.22578735,42574.0,42573.0,0.1]
[1644617139531,0.34044402,42574.0,42573.0,0.1]
[1644617139729,0.45604443,42574.0,42573.0,0.1]
[1644617139929,0.0969,42574.0,42573.0,0.1]
[1644617140332,0.05,42574.0,42573.0,0.1]
[1644617140532,0.108756,42576.0,42573.0,0.1]
[1644617140729,0.05875337,42576.0,42573.0,0.1]
[1644617140932,0.05,42575.0,42573.0,0.1]
[1644617141231,0.09592,42579.0,42573.0,0.1]
[1644617141432,0.44337055,42577.0,42573.0,0.1]
[1644617141833,0.54337055,42577.0,42573.0,0.1]
[1644617142231,0.23293581,42574.0,42573.0,0.1]
[1644617142432,0.71228447,42574.0,42573.0,0.1]
[1644617142873,0.81228447,42574.0,42573.0,0.1]
[1644617143077,0.86228447,42574.0,42573.0,0.1]
[1644617143275,0.91228447,42574.0,42573.0,0.1]
[1644617144375,0.91228447,42574.0,42573.0,0.05147525]
[1644617147829,1.05,42573.0,42571.0,0.00022611]
[1644617148028,0.42285055,42572.0,42571.0,0.00045606]
[1644617148231,0.47285055,42572.0,42571.0,0.00045606]
[1644617148430,0.72285055,42572.0,42571.0,0.00045606]
[1644617148629,0.058782,42566.0,42541.0,0.01]
[1644617148832,0.23883341,42560.0,42545.0,0.3961]
[1644617149033,0.39765664,42559.0,42545.0,0.3961]
[1644617149430,0.44765664,42559.0,42545.0,0.3961]
[1644617150234,0.44765664,42559.0,42541.0,0.01]
[1644617150499,0.56145664,42559.0,42541.0,0.01]
[1644617150699,0.0854791,42543.0,42541.0,0.005]
[1644617150902,0.0469,42542.0,42541.0,0.005]
[1644617152096,0.32461964,42548.0,42541.0,0.005]
[1644617152300,0.05,42543.0,42541.0,0.005]
[1644617152497,0.0469,42542.0,42541.0,0.005]
[1644617152698,0.0469,42542.0,42529.0,0.117627]
[1644617152699,0.0888484,42536.0,42529.0,0.117627]
[1644617152899,0.0888484,42536.0,42526.0,0.2]
[1644617152900,0.0469,42535.0,42526.0,0.2]
[1644617153097,0.0469,42535.0,42533.0,0.00182339]
[1644617153506,0.05882538,42534.0,42533.0,0.00182339]
[1644617153897,0.05882538,42534.0,42529.0,0.05882]
[1644617154138,0.0469,42535.0,42531.0,0.00045581]
[1644617154331,0.0469,42533.0,42532.0,0.2]
[1644617154731,0.0469,42533.0,42532.0,0.258815]
[1644617154932,0.0469,42533.0,42532.0,0.59680537]
[1644617155132,0.05,42538.0,42536.0,0.2]
[1644617155331,0.0469,42542.0,42540.0,0.2]
[1644617155730,0.0469,42542.0,42540.0,0.25]